bitfinex-derivatives/quotes_ETHF0:USTF0_20240927
["timestamp","ask_amount","ask_price","bid_price","bid_amount"]
[1727455750780,0.36731,2721.9,2721.8,0.3673]
[1727455751087,0.36729,2722.0,2721.9,0.36728]
[1727455751289,1.50677,2722.1,2722.0,0.36728]
[1727455752385,0.91824,2721.9,2721.2,0.93437462]
[1727455752591,0.36737,2721.4,2721.3,0.36736]
[1727455752979,0.36737,2721.4,2721.1,3.23739]
[1727455752980,0.36739,2721.2,2721.1,3.23739]
[1727455753682,0.3674,2721.1,2721.0,1.54751]
[1727455754390,0.36742,2721.0,2720.9,2.87]
[1727455754590,0.91851,2721.1,2720.8,0.36743]
[1727455754796,0.36743,2720.9,2720.8,0.36743]
[1727455755293,0.36745,2720.8,2720.7,0.36745]
[1727455755796,7.80162,2720.8,2720.4,1.1735]
[1727455755983,0.3675,2720.5,2720.2,2.87]
[1727455756185,0.36751,2720.3,2720.2,3.23751]
[1727455756386,3.57529,2720.5,2720.4,0.3675]
[1727455756589,0.36749,2720.5,2720.4,0.3675]
[1727455758999,0.36751,2720.4,2720.3,0.3675]
[1727455759504,0.36751,2720.3,2720.2,3.23752]
[1727455760198,0.36752,2720.2,2720.1,0.36752]
[1727455760702,0.36752,2720.3,2720.2,0.36752]
[1727455761002,0.36753,2720.2,2720.1,0.36753]
[1727455761197,0.91876,2720.4,2720.0,4.0435]
[1727455761198,3.2078,2720.3,2720.0,4.0435]
[1727455761395,0.36753,2720.2,2720.1,0.36753]
[1727455761899,3.2078,2720.3,2720.2,0.36752]
[1727455761900,3.57532,2720.3,2720.2,0.36752]
[1727455762687,3.57532,2720.3,2720.0,4.0435]
[1727455762688,0.36753,2720.2,2720.1,0.36753]
[1727455762890,1.2023,2720.2,2720.1,0.36753]
[1727455763101,1.56982,2720.2,2720.1,0.36753]
[1727455763694,0.36761,2719.6,2719.2,4.14217462]
[1727455763998,0.91912,2719.3,2718.9,0.36769]
[1727455764192,0.36766,2719.2,2718.7,2.87]
[1727455764396,0.36767,2719.1,2719.0,0.36769]
[1727455764796,0.36767,2719.1,2718.9,0.36769]
[1727455765096,0.36767,2719.1,2719.0,0.36769]
[1727455765399,0.36771,2718.8,2718.7,2.87]
[1727455765595,3.2078,2719.2,2718.5,6.0778]
[1727455765899,4.12697,2719.2,2718.6,0.36773]
[1727455766101,0.91919,2719.1,2718.5,6.0778]
[1727455766294,0.91919,2719.1,2718.7,0.36771]
[1727455766295,0.36769,2719.0,2718.7,0.36771]
[1727455766496,1.2013,2718.9,2718.8,0.36771]
[1727455767800,3.2078,2719.2,2719.1,0.36767]
[1727455767997,0.36765,2719.3,2719.1,0.36767]
[1727455768194,0.36765,2719.3,2718.7,2.87]
[1727455768195,1.1418,2719.4,2719.3,0.36764]
[1727455768399,1.1418,2719.4,2719.0,2.87]
[1727455768599,0.36765,2719.3,2719.1,0.36767]
[1727455768792,0.36767,2719.2,2719.0,3.23768]
[1727455768995,0.36765,2719.3,2719.1,0.36767]
[1727455769204,1.1812,2719.5,2719.4,0.36763]
[1727455769500,0.3676,2719.7,2719.5,0.36762]
[1727455769806,3.2078,2719.8,2719.6,2.87]
[1727455770007,0.91885,2720.1,2719.6,2.87]
[1727455770205,1.1529,2720.1,2719.6,2.87]
[1727455770507,0.36755,2720.0,2719.6,2.87]
[1727455770891,0.36755,2720.0,2719.8,0.36757]
[1727455771100,1.1529,2720.1,2719.8,0.36757]
[1727455771101,0.36756,2719.9,2719.8,0.36757]
[1727455771300,0.36759,2719.7,2719.5,0.36761]
[1727455771802,0.3676,2719.6,2719.5,0.36761]
[1727455772201,0.3676,2719.7,2719.5,0.36761]
[1727455772504,0.3676,2719.7,2719.6,0.3676]
[1727455772810,3.2078,2719.9,2719.6,2.87]
[1727455773303,3.2078,2719.9,2719.8,3.23758]
[1727455773705,3.2078,2719.9,2719.8,0.36758]
[1727455774507,0.36758,2719.8,2719.6,2.87]
[1727455774706,0.36759,2719.7,2719.6,2.87]
[1727455775009,3.6768,2719.8,2719.1,2.87]
[1727455775304,0.91905,2719.5,2719.1,0.36766]
[1727455775605,0.36766,2719.3,2719.2,0.36766]
[1727455776104,1.1758,2719.4,2718.9,6.0778]
[1727455776305,5.30271,2719.4,2718.9,6.0778]
[1727455776500,1.1758,2719.4,2718.9,6.0778]
[1727455776695,0.36765,2719.3,2719.2,0.36765]
[1727455776894,0.36766,2719.2,2718.9,6.0778]
[1727455777106,0.36768,2719.1,2718.9,6.44549]
[1727455777304,0.36769,2719.0,2718.9,6.44549]
[1727455778003,0.91912,2719.3,2718.9,6.44549]
[1727455778201,0.36769,2719.0,2718.9,6.44549]
[1727455778513,0.36771,2718.9,2718.8,0.36771]
[1727455778709,0.36771,2718.8,2718.7,0.36772]
[1727455778901,0.36783,2718.0,2717.8,5.84134]
[1727455779207,0.36783,2718.0,2717.5,6.0778]
[1727455779909,0.36783,2718.0,2717.7,0.36785]
[1727455780610,0.36783,2718.0,2717.5,3.2078]
[1727455781108,0.36783,2718.0,2717.7,0.36786]
[1727455781713,0.36783,2718.0,2717.5,3.2078]
[1727455781904,0.36783,2718.0,2717.7,0.36785]
[1727455782404,1.47452,2718.1,2717.9,0.36783]
[1727455782605,0.36782,2718.0,2717.8,0.36784]
[1727455783611,1.47451,2718.1,2717.9,0.36783]
[1727455784111,1.1067,2718.1,2717.9,0.36783]
[1727455784703,0.36782,2718.0,2717.9,0.36783]
[1727455785615,0.36784,2717.9,2717.8,0.36784]
[1727455785916,0.36785,2717.8,2717.7,0.36785]
[1727455787011,1.1067,2718.1,2717.6,0.91969]
[1727455787210,1.1067,2718.1,2717.5,3.2078]
[1727455787211,0.36785,2717.9,2717.8,0.36784]
[1727455787513,0.36787,2717.7,2717.6,0.36786]
[1727455788410,0.36787,2717.6,2717.5,3.57568]
[1727455788615,0.36786,2717.7,2717.6,0.36787]
[1727455789517,0.36786,2717.8,2717.7,0.36786]
[1727455789715,0.36784,2717.9,2717.8,0.36785]
[1727455792721,0.36785,2717.8,2717.7,0.36785]
[1727455792924,0.36783,2718.0,2717.9,0.36783]
[1727455793326,0.9194,2718.5,2717.9,0.36783]
[1727455793327,0.91926,2718.9,2718.0,0.91956]
[1727455793623,0.36773,2718.7,2718.5,0.36775]
[1727455794523,6.38616,2718.9,2718.5,0.36775]
[1727455794824,0.36772,2718.8,2718.6,0.36773]
[1727455795219,0.36772,2718.8,2718.3,1.1114]
[1727455795425,0.36771,2718.8,2718.6,0.36773]
[1727455795925,0.36773,2718.7,2718.5,0.36774]
[1727455796427,0.36772,2718.8,2718.6,0.36773]
[1727455796926,2.2591,2718.9,2718.8,0.36771]
[1727455797125,5.4669,2718.9,2718.8,0.36771]
[1727455797319,2.2591,2718.9,2718.8,0.36771]
[1727455797822,0.36767,2719.2,2719.0,0.36768]
[1727455798525,3.2078,2719.3,2718.6,2.02694]
[1727455798726,0.36766,2719.2,2718.6,2.02694]
[1727455799226,3.2078,2719.3,2718.6,1.1076]
[1727455799521,0.36771,2718.8,2718.6,1.1076]
[1727455799730,3.2078,2718.9,2718.8,0.36771]
[1727455800821,3.5755,2718.9,2718.8,0.36771]
[1727455801124,0.91929,2718.8,2718.4,3.2078]
[1727455801319,0.36774,2718.6,2718.5,0.36774]
[1727455801721,0.36774,2718.7,2718.6,0.36774]
[1727455801915,2.4078,2718.8,2718.7,0.36773]
[1727455801916,2.77552,2718.8,2718.7,0.36773]
[1727455802120,3.2078,2718.9,2718.8,0.36771]
[1727455802517,3.2078,2718.9,2718.6,0.36773]
[1727455802721,0.36774,2718.7,2718.6,0.36773]
[1727455802923,0.36775,2718.6,2718.5,0.36774]
[1727455804132,0.36775,2718.6,2718.5,0.36775]
[1727455804929,0.36773,2718.7,2718.6,0.36773]
[1727455805125,0.36775,2718.6,2718.5,0.36774]
[1727455805323,3.2078,2718.9,2718.4,3.2078]
[1727455805529,0.36775,2718.6,2718.5,0.36775]
[1727455805729,0.36775,2718.5,2718.4,3.57556]
[1727455806331,1.1888,2718.6,2718.5,0.36775]
[1727455807335,0.36772,2718.8,2718.7,0.36773]
[1727455808129,0.36772,2718.8,2718.4,4.12722]
[1727455808130,0.36774,2718.7,2718.6,0.36773]
[1727455808337,0.36774,2718.7,2718.4,0.36775]
[1727455808338,0.36776,2718.5,2718.4,0.36775]
[1727455809228,0.36775,2718.6,2718.5,0.36775]
[1727455809433,1.48023,2718.7,2718.6,0.36774]
[1727455810133,1.1125,2718.7,2718.6,0.36774]
[1727455810638,1.48023,2718.7,2718.6,0.36774]
[1727455810929,3.57551,2718.9,2718.8,0.36771]
[1727455811134,3.2078,2718.9,2718.8,0.36771]
[1727455811535,3.2078,2718.9,2718.8,1.48621]
[1727455812633,3.5755,2718.9,2718.8,1.48621]
[1727455812830,3.5755,2718.9,2718.8,0.36771]
[1727455813637,3.2078,2718.9,2718.8,0.36771]
[1727455814438,3.2078,2718.9,2718.8,1.287]
[1727455814739,3.2078,2718.9,2718.8,2.20629]
[1727455815037,3.57543,2719.4,2719.3,0.36763]
[1727455815239,3.2078,2719.4,2719.3,0.36763]
[1727455815742,3.2078,2719.4,2719.3,1.50033]
[1727455816234,3.57543,2719.4,2719.3,1.50033]
[1727455816734,3.57543,2719.4,2719.3,0.36763]
[1727455816930,0.91912,2719.3,2719.1,0.36766]
[1727455817239,0.36766,2719.2,2719.1,0.36766]
[1727455817543,0.36767,2719.2,2719.1,0.36766]
[1727455818531,0.36765,2719.3,2719.2,0.36764]
[1727455819738,3.57544,2719.4,2719.3,0.36764]
[1727455819930,0.36764,2719.3,2719.2,0.38130792]
[1727455820131,1.28676,2719.3,2719.2,0.01365792]
[1727455820436,8.75348,2719.3,2719.2,0.01365792]
[1727455820637,8.75348,2719.3,2718.5,0.36774]
[1727455820638,0.36775,2718.6,2718.5,0.36774]
[1727455820846,0.36773,2718.7,2718.6,0.36773]
[1727455821543,0.36772,2718.8,2718.7,0.36771]
[1727455821841,0.36767,2719.2,2719.1,0.36766]
[1727455822142,3.57544,2719.4,2719.3,0.36764]
[1727455822339,3.2078,2719.4,2719.3,0.36764]
[1727455822545,3.57543,2719.4,2719.3,0.36764]
[1727455823341,0.36766,2719.3,2719.2,0.36765]
[1727455824334,0.36766,2719.3,2719.0,2.3695]
[1727455824335,0.36767,2719.1,2719.0,0.36768]
[1727455824844,0.91919,2719.1,2718.6,5.5528]
[1727455825035,0.36773,2718.7,2718.6,0.36773]
[1727455825436,0.36775,2718.6,2718.5,0.36775]
[1727455826333,0.36775,2718.6,2718.5,0.38261489]
[1727455827032,1.1226,2718.7,2718.6,0.36774]
[1727455827033,1.49034,2718.7,2718.6,0.36774]
[1727455827241,1.49034,2718.7,2718.6,0.38260489]
[1727455827839,1.49034,2718.7,2718.6,0.01486489]
[1727455828642,2.40966,2718.7,2718.6,0.01486489]
[1727455829442,2.40966,2718.7,2718.6,0.38260489]
[1727455829443,1.49034,2718.7,2718.6,0.38260489]
[1727455830439,3.2078,2718.9,2718.8,0.36771]
[1727455830741,1.5141,2719.0,2718.9,0.3677]
[1727455831048,5.1917,2719.0,2718.9,0.3677]
[1727455831341,5.1917,2719.0,2718.9,0.38256489]
[1727455833446,0.91919,2719.1,2719.0,0.36769]
[1727455833447,0.36768,2719.1,2719.0,0.36769]
[1727455834343,0.35282511,2719.0,2718.9,0.3677]
[1727455834734,0.36768,2719.1,2719.0,0.36767]
[1727455835437,0.91904,2719.6,2719.1,0.36767]
[1727455835641,0.3676,2719.7,2719.6,0.36759]
[1727455836444,0.36761,2719.6,2719.5,0.36761]
[1727455836635,0.36763,2719.4,2719.3,1.1725]
[1727455837047,0.36766,2719.2,2719.1,3.2078]
[1727455837241,0.36766,2719.2,2719.1,3.57547]
[1727455837646,0.36766,2719.2,2719.1,3.57546]
[1727455837946,0.36768,2719.1,2719.0,0.36768]
[1727455838242,3.57547,2719.2,2719.1,0.36767]
[1727455838445,0.36767,2719.1,2719.0,0.36768]
[1727455838745,0.36769,2719.0,2718.9,2.66969]
[1727455838938,0.36773,2718.7,2718.6,0.36774]
[1727455839145,0.36773,2718.7,2718.6,0.36773]
[1727455839446,0.36772,2718.8,2718.7,0.36773]
[1727455839647,5.6604,2718.9,2718.8,0.36771]
[1727455839848,0.36771,2718.8,2718.7,0.36772]
[1727455840044,0.36771,2718.8,2718.5,2.3119]
[1727455840251,0.36772,2718.8,2718.7,0.36773]
[1727455840735,5.6604,2718.9,2718.7,0.36773]
[1727455840939,2.4526,2718.9,2718.8,0.36771]
[1727455841139,3.2078,2719.2,2719.1,0.36767]
[1727455843941,1.1151,2719.5,2719.4,0.36763]
[1727455844139,0.91884,2720.2,2719.1,3.6776]
[1727455844140,3.5754,2719.7,2719.6,0.3676]
[1727455847546,3.2078,2719.7,2719.1,9.15046462]
[1727455847751,0.36763,2719.5,2719.4,0.36762]
[1727455848345,0.36764,2719.4,2719.3,0.36763]
[1727455849046,2.06623,2719.6,2719.4,0.36762]
[1727455849047,0.36763,2719.5,2719.4,0.36762]
[1727455849445,1.51481,2719.6,2719.5,0.36762]
[1727455849755,0.36761,2719.6,2719.5,0.36762]
[1727455850553,3.5754,2719.7,2719.6,0.3676]
[1727455851441,3.5754,2719.7,2719.5,0.36761]
[1727455851442,0.36762,2719.6,2719.5,0.36761]
[1727455852451,3.6768,2719.6,2719.1,1.2191]
[1727455852752,0.36771,2718.9,2718.8,0.36771]
[1727455852956,0.36771,2718.9,2718.6,0.36772]
[1727455852957,0.36773,2718.7,2718.6,0.36772]
[1727455853149,2.64382,2718.8,2718.7,0.36773]
[1727455853550,4.4354,2719.5,2719.0,0.36769]
[1727455853860,0.36764,2719.4,2719.3,0.36763]
[1727455855157,0.36764,2719.4,2719.0,4.34669]
[1727455855158,0.36769,2719.1,2719.0,0.36767]
[1727455855357,0.3677,2719.0,2718.8,1.2069]
[1727455855656,0.3677,2718.9,2718.8,0.3677]
[1727455856155,0.3677,2718.9,2718.5,3.23688]
[1727455856156,0.36774,2718.7,2718.6,0.36773]
[1727455856456,0.36772,2718.8,2718.7,0.36771]
[1727455856962,0.36774,2718.7,2718.6,0.36773]
[1727455857255,0.36772,2718.8,2718.3,1.30215462]
[1727455857256,0.36777,2718.4,2718.3,1.30215462]
[1727455857454,0.36776,2718.5,2718.4,0.36775]
[1727455857957,0.36778,2718.4,2718.3,0.36777]
[1727455858359,0.36779,2718.2,2718.1,0.93437462]
[1727455858663,0.36782,2718.0,2717.9,1.30219462]
[1727455858859,3.78956,2718.0,2717.7,0.93437462]
[1727455859159,3.78956,2718.0,2717.3,0.91979]
[1727455859160,0.91966,2717.7,2717.1,0.93437462]
[1727455859358,0.36793,2717.2,2717.0,0.36795]
[1727455859557,3.2078,2717.5,2716.9,3.2078]
[1727455859756,0.36791,2717.4,2717.2,0.36792]
[1727455860068,2.76658,2717.6,2717.4,0.36789]
[1727455860357,1.1098,2717.9,2717.3,3.2078]
[1727455860565,1.47765,2717.9,2717.4,2.15287462]
[1727455860752,1.2031,2718.1,2717.9,0.36783]
[1727455860753,1.57092,2718.1,2717.9,0.36783]
[1727455860953,1.2031,2718.1,2717.4,2.15287462]
[1727455861154,0.36784,2717.9,2717.7,0.36785]
[1727455861355,1.2031,2718.1,2717.4,2.15287462]
[1727455861547,0.36783,2718.0,2717.8,0.36785]
[1727455861754,0.91952,2718.2,2718.0,0.36782]
[1727455861755,0.3678,2718.2,2718.0,0.36782]
[1727455861950,0.36779,2718.3,2717.7,4.12746]
[1727455862155,4.3179,2718.5,2717.7,4.12746]
[1727455862156,4.3179,2718.5,2717.8,0.91961]
[1727455862353,4.3179,2718.5,2717.9,2.4216]
[1727455862566,0.36777,2718.4,2718.2,0.36779]
[1727455862852,4.3179,2718.5,2718.0,1.126]
[1727455863071,0.36773,2718.7,2718.5,0.36774]
[1727455863264,4.3438,2718.8,2718.0,5.26817462]
[1727455863265,1.136,2718.8,2718.2,0.91949]
[1727455863458,1.50372,2718.8,2718.6,0.36773]
[1727455863761,3.57552,2718.8,2718.6,0.36773]
[1727455863964,0.36774,2718.7,2718.5,0.36775]
[1727455864859,0.36773,2718.7,2718.2,0.93437462]
[1727455865359,0.36773,2718.7,2718.6,0.36774]
[1727455865564,0.36775,2718.6,2718.4,0.36777]
[1727455865766,0.36774,2718.6,2718.4,0.36776]
[1727455865961,0.36774,2718.6,2718.5,0.36775]
[1727455866256,3.2078,2718.8,2718.0,6.63277331]
[1727455866257,0.36775,2718.5,2718.4,0.36776]
[1727455866465,0.36779,2718.3,2718.0,2.06037462]
[1727455866761,3.2078,2718.5,2718.1,0.3678]
[1727455867068,0.36779,2718.3,2717.7,3.2078]
[1727455867362,0.36779,2718.3,2717.7,5.06181462]
[1727455867363,0.36778,2718.3,2717.7,5.06181462]
[1727455867559,0.36778,2718.3,2717.7,4.12744]
[1727455867753,0.36778,2718.3,2718.1,0.36779]
[1727455867959,0.36778,2718.3,2718.2,0.36779]
[1727455868155,3.542,2718.4,2717.7,3.2078]
[1727455868460,3.542,2718.4,2717.5,0.36788]
[1727455868461,6.7378,2718.2,2717.5,0.36788]
[1727455868651,0.36787,2717.7,2717.3,4.3895]
[1727455868856,0.36787,2717.7,2717.6,0.36787]
[1727455869064,0.36786,2717.8,2717.6,0.36787]
[1727455869361,0.36784,2717.9,2717.8,0.36784]
[1727455869562,7.65731,2718.2,2717.3,7.9195]
[1727455869563,3.2078,2718.2,2717.3,7.9195]
[1727455869871,2.3665,2718.4,2718.3,0.36778]
[1727455870366,1.1582,2718.4,2718.3,0.36778]
[1727455871068,1.52597,2718.4,2718.3,0.36778]
[1727455871261,1.1582,2718.4,2718.3,0.36778]
[1727455872071,3.57555,2718.6,2718.0,3.19244]
[1727455872268,3.57555,2718.6,2718.5,0.36775]
[1727455872466,3.2078,2718.6,2718.5,0.36775]
[1727455872669,7.25395,2718.6,2718.5,0.36775]
[1727455873060,7.25395,2718.6,2718.0,2.2729]
[1727455873061,6.8862,2718.6,2718.0,2.2729]
[1727455873358,0.36777,2718.4,2718.3,0.36777]
[1727455873562,3.2078,2718.6,2718.1,0.3678]
[1727455873563,0.3678,2718.2,2718.1,0.3678]
[1727455873763,0.3678,2718.2,2718.1,0.36781]
[1727455873963,0.36781,2718.1,2718.0,0.36781]
[1727455874161,0.36782,2718.0,2717.9,0.36782]
[1727455875766,0.36782,2718.0,2717.5,5.34982]
[1727455875767,4.68712,2718.1,2718.0,0.36782]
[1727455875959,0.36783,2718.0,2717.9,0.36782]
[1727455876560,4.3193,2718.1,2717.5,5.34982]
[1727455876561,0.36784,2717.9,2717.8,0.36784]
[1727455877563,0.36783,2718.0,2717.9,0.36783]
[1727455879569,1.1115,2718.1,2718.0,0.36782]
[1727455879570,1.47931,2718.1,2718.0,0.36782]
[1727455879765,0.91948,2718.3,2717.6,0.91969]
[1727455879766,3.2078,2719.2,2717.8,3.2078]
[1727455880074,3.2078,2719.2,2718.7,0.36773]
[1727455880075,0.91923,2719.0,2718.7,0.36773]
[1727455880269,0.36771,2718.8,2718.7,0.36772]
[1727455880463,0.91923,2719.0,2718.6,0.36773]
[1727455880669,0.36772,2718.8,2718.7,0.36772]
[1727455881075,0.36771,2718.9,2718.8,0.36771]
[1727455881468,0.3677,2718.9,2718.8,0.36771]
[1727455881674,0.36773,2718.8,2718.4,2.3476]
[1727455881866,0.36776,2718.5,2718.4,0.36776]
[1727455882268,4.04616,2718.5,2718.4,0.36776]
[1727455882472,0.36777,2718.4,2718.3,0.36777]
[1727455882969,0.3678,2718.2,2718.1,0.3678]
[1727455883277,0.36779,2718.3,2718.2,0.36779]
[1727455884376,3.6792,2718.3,2717.8,1.2065]
[1727455884573,0.36783,2718.0,2717.9,0.36782]
[1727455884875,0.36783,2718.0,2717.4,4.12753]
[1727455884876,0.36784,2717.9,2717.8,0.36784]
[1727455885078,1.54414,2717.9,2717.8,0.36784]
[1727455885279,5.22334,2717.9,2717.8,0.36784]
[1727455885470,4.8555,2717.9,2717.8,0.36784]
[1727455885871,5.22333,2717.9,2717.8,0.36784]
[1727455887276,4.8555,2717.9,2717.8,0.36784]
[1727455887478,1.52112,2718.1,2718.0,0.36782]
[1727455887677,0.36784,2717.9,2717.8,0.36783]
[1727455887872,0.36784,2717.9,2717.5,0.36788]
[1727455887873,0.36788,2717.6,2717.5,0.36788]
[1727455888081,0.36787,2717.7,2717.6,0.36786]
[1727455888282,0.36789,2717.5,2717.4,0.3679]
[1727455888785,3.2078,2717.6,2717.2,0.91983]
[1727455888977,0.36788,2717.6,2717.5,0.36789]
[1727455889178,1.59067,2717.7,2717.6,0.36787]
[1727455889485,1.1755,2717.8,2717.7,0.36786]
[1727455891678,1.54335,2717.8,2717.5,1.196]
[1727455891977,1.1755,2717.8,2717.7,0.36786]
[1727455892179,1.54335,2717.8,2717.7,0.36786]
[1727455892380,1.1755,2717.8,2717.7,0.36786]
[1727455893091,1.54335,2717.8,2717.6,0.36786]
[1727455893687,0.36787,2717.7,2717.5,1.56388]
[1727455894182,0.36787,2717.7,2717.5,0.36788]
[1727455894381,0.36787,2717.7,2717.3,2.87]
[1727455894685,1.1755,2717.8,2717.5,0.36788]
[1727455894883,0.36787,2717.7,2717.5,0.36788]
[1727455895589,1.54336,2717.8,2717.6,0.36787]
[1727455896383,1.1755,2717.8,2717.7,0.36786]
[1727455896692,4.8547,2717.8,2717.7,0.36786]
[1727455896982,4.8547,2717.8,2717.4,0.91975]
[1727455896983,0.36786,2717.7,2717.3,2.87]
[1727455897184,1.1755,2717.8,2717.4,0.3679]
[1727455897385,0.36788,2717.6,2717.5,0.36789]
[1727455897584,0.36787,2717.7,2717.5,0.36789]
[1727455897784,0.36787,2717.6,2717.5,0.36789]
[1727455898085,0.36787,2717.7,2717.6,0.36787]
[1727455898483,3.2078,2717.9,2717.4,0.91976]
[1727455898791,3.2078,2717.9,2717.8,0.36785]
[1727455899187,3.2078,2717.9,2717.8,4.15748]
[1727455899388,6.0778,2718.5,2717.9,0.36783]
[1727455899579,0.36783,2718.0,2717.8,0.36784]
[1727455899782,0.36783,2718.0,2717.6,1.1485]
[1727455899783,5.2688,2718.2,2717.9,0.36783]
[1727455899983,3.2078,2718.2,2718.1,0.36781]
[1727455900190,3.2078,2718.5,2718.0,3.78955]
[1727455900488,3.57556,2718.5,2718.1,1.1562]
[1727455900683,3.57556,2718.5,2718.3,0.36777]
[1727455901188,3.57556,2718.5,2718.1,1.1562]
[1727455901189,3.2078,2718.5,2718.1,1.1562]
[1727455901683,3.2078,2718.7,2718.6,0.36773]
[1727455901885,3.2078,2718.7,2718.4,2.87]
[1727455901886,3.57549,2719.0,2718.7,0.36773]
[1727455902089,3.57549,2719.0,2718.7,0.36772]
[1727455902285,0.3677,2718.9,2718.6,0.36773]
[1727455902879,6.0778,2719.0,2718.5,1.1557]
[1727455903084,3.2078,2718.7,2718.5,0.36775]
[1727455903695,3.2078,2718.7,2718.3,0.36778]
[1727455903888,0.36774,2718.6,2718.3,0.36778]
[1727455904092,0.36777,2718.4,2718.2,3.2078]
[1727455904591,0.36777,2718.4,2717.8,5.44873331]
[1727455904592,2.87,2718.3,2717.8,2.50151462]
[1727455904788,2.87,2718.3,2717.9,0.36783]
[1727455904996,0.36781,2718.1,2717.8,0.36784]
[1727455905195,3.57561,2718.1,2717.8,0.36784]
[1727455905486,0.36784,2717.9,2717.6,0.36787]
[1727455905690,1.57713,2718.0,2717.4,2.3484]
[1727455905894,1.2093,2718.0,2717.4,3.28277462]
[1727455906085,1.2093,2718.0,2717.9,0.36783]
[1727455906289,1.55288,2718.3,2718.0,0.36781]
[1727455907489,0.36778,2718.3,2718.0,0.36781]
[1727455907883,0.36778,2718.3,2718.1,0.36781]
[1727455908097,4.4171,2718.4,2718.2,0.36779]
[1727455908490,4.78487,2718.4,2717.9,1.1485]
[1727455908682,4.4171,2718.4,2718.3,0.36778]
[1727455908884,3.2078,2718.7,2718.2,3.78947]
[1727455909086,0.91913,2719.3,2718.8,0.36771]
[1727455909087,3.2078,2719.0,2718.8,0.36771]
[1727455909492,3.2078,2719.0,2718.5,1.1485]
[1727455909693,3.5755,2719.0,2718.6,2.3532]
[1727455909996,3.57549,2719.0,2718.6,2.3532]
[1727455910191,3.57549,2719.0,2718.9,0.3677]
[1727455910192,3.2078,2719.0,2718.9,0.3677]
[1727455911093,3.2078,2719.0,2718.9,3.2377]
[1727455912292,3.2078,2719.0,2718.9,0.3677]
[1727455913101,3.57549,2719.0,2718.8,0.3677]
[1727455914189,3.2078,2719.0,2718.9,0.3677]
[1727455914393,3.2078,2719.0,2718.8,0.3677]
[1727455914594,3.2078,2719.0,2718.9,0.3677]
[1727455915098,0.36768,2719.1,2718.9,0.3677]
[1727455915297,0.36768,2719.1,2718.8,0.3677]
[1727455915502,0.36768,2719.1,2718.6,2.3532]
[1727455915503,0.3677,2718.9,2718.6,2.3532]
[1727455915802,0.3677,2718.9,2718.7,0.36772]
[1727455916397,0.3677,2718.9,2718.6,2.3532]
[1727455916398,5.5987,2719.0,2718.6,2.3532]
[1727455916597,0.3677,2718.9,2718.7,0.36772]
[1727455917406,7.0948,2719.0,2718.8,0.36771]
[1727455918104,0.36771,2718.9,2718.7,0.36772]
[1727455919105,0.36771,2718.9,2718.4,4.12721]
[1727455919106,6.7271,2719.0,2718.4,3.2078]
[1727455919307,0.36772,2718.8,2718.6,0.36774]
[1727455919507,7.64633,2719.0,2718.6,0.36774]
[1727455919802,7.64633,2719.0,2718.4,3.2078]
[1727455919803,0.36773,2718.7,2718.5,0.36775]
[1727455920196,0.36772,2718.8,2718.6,0.36773]
[1727455921404,0.36776,2718.5,2718.3,0.36777]
[1727455921709,3.2078,2718.7,2718.4,0.36777]
[1727455921710,0.36775,2718.6,2718.4,0.36777]
[1727455922105,3.2078,2718.7,2717.9,4.3302]
[1727455922306,3.70781994,2719.0,2718.0,0.36781]
[1727455922307,0.3678,2718.2,2718.0,0.36781]
[1727455922515,4.12723,2718.4,2718.2,0.36779]
[1727455922516,3.57558,2718.4,2718.2,0.36779]
[1727455922706,0.36775,2718.5,2718.0,0.91955]
[1727455922907,0.36775,2718.6,2718.4,0.36777]
[1727455923410,0.36775,2718.6,2718.4,0.36776]
[1727455923411,4.04615,2718.6,2718.4,0.36776]
[1727455923710,0.36775,2718.6,2718.1,0.91952]
[1727455923917,0.36775,2718.6,2718.4,0.36775]
[1727455924501,0.36775,2718.5,2718.4,0.36775]
[1727455924809,0.36776,2718.5,2718.4,0.36777]
[1727455926211,0.36775,2718.6,2718.5,0.36775]
[1727455926416,3.2078,2718.7,2718.1,0.91952]
[1727455926417,3.57554,2718.7,2718.1,0.91952]
[1727455926708,3.2078,2718.7,2718.6,0.36774]
[1727455927106,2.65595343,2718.7,2718.6,0.36774]
[1727455927311,3.02368343,2718.7,2718.6,0.36774]
[1727455927508,3.02368343,2718.7,2718.5,1.48695]
[1727455927509,2.65595343,2718.7,2718.5,1.48695]
[1727455927805,2.65595343,2718.7,2718.5,1.1192]
[1727455928110,3.02368343,2718.7,2718.2,1.1802]
[1727455928409,3.02368343,2718.7,2718.5,0.36775]
[1727455928612,0.36774,2718.6,2718.4,0.36776]
[1727455929206,2.65595343,2718.7,2718.2,3.4248]
[1727455929412,0.36775,2718.6,2718.4,0.36776]
[1727455929914,2.65595343,2718.7,2717.9,4.58723331]
[1727455929915,0.36779,2718.3,2718.1,0.36781]
[1727455930310,1.47309,2718.3,2718.1,0.36781]
[1727455930504,1.1053,2718.3,2718.2,0.36779]
[1727455931414,1.1053,2718.3,2717.9,4.12739]
[1727455931415,1.47308,2718.3,2718.1,0.3678]
[1727455932216,1.1053,2718.3,2718.2,0.36779]
[1727455933511,1.47308,2718.3,2718.1,0.3678]
[1727455934310,1.1053,2718.3,2718.2,0.36779]
[1727455935415,1.47309,2718.3,2718.1,0.3678]
[1727455935609,1.1053,2718.3,2718.1,0.3678]
[1727455935809,1.1053,2718.3,2718.2,0.36779]